bitfinex-derivatives/quotes_SOLF0:USTF0_20250924
["timestamp","ask_amount","ask_price","bid_price","bid_amount"]
[1758680027463,1.21002392,214.34,214.26,7.79]
[1758680027663,1.32885663,214.36,214.26,7.79]
[1758680027865,1.21010372,214.35,214.26,7.79]
[1758680028057,1.21010372,214.34,214.26,7.79]
[1758680028254,101.12,214.39,214.29,7.79]
[1758680028462,1.21027319,214.38,214.29,7.79]
[1758680028657,1.21027319,214.37,214.29,7.79]
[1758680028861,1.21027319,214.36,214.33,7.79]
[1758680029067,7.74,214.37,214.32,4.1973]
[1758680029365,8.9389732,214.36,214.32,11.9873]
[1758680029556,7.74,214.36,214.33,7.79]
[1758680030461,7.74,214.37,214.33,4.1972]
[1758680030663,1.32885663,214.38,214.33,4.1972]
[1758680030862,7.74,214.36,214.33,4.1972]
[1758680032373,9.06885663,214.38,214.33,11.9872]
[1758680032569,7.74,214.37,214.33,11.9872]
[1758680033174,1.32885663,214.38,214.33,11.9872]
[1758680033374,1.32885663,214.35,214.29,7.7]
[1758680033571,9.07885663,214.35,214.25,7.7]
[1758680033873,9.07885663,214.32,214.25,7.7]
[1758680034175,7.75,214.29,214.25,7.7]
[1758680034575,1.32885663,214.31,214.23,3.91779961]
[1758680034776,1.32885663,214.31,214.24,7.7]
[1758680035376,9.07885663,214.33,214.25,7.7]
[1758680035973,9.07885663,214.33,214.25,11.61779961]
[1758680036476,7.75,214.33,214.25,11.61779961]
[1758680036776,9.07885663,214.33,214.26,7.7]
[1758680037276,22.00035132,214.33,214.26,11.61779961]
[1758680037477,1.32885663,214.36,214.28,7.7]
[1758680037673,9.07885663,214.36,214.32,4.1975]
[1758680038271,1.32885663,214.36,214.33,4.1972]
[1758680038472,9.07885663,214.39,214.33,7.7]
[1758680038672,352.76,214.46,214.33,7.7]
[1758680038673,7.75,214.45,214.33,7.7]
[1758680038879,1.32885663,214.43,214.36,4.1966]
[1758680039081,1.32885663,214.43,214.33,9.02885663]
[1758680039379,9.07885663,214.43,214.33,9.02885663]
[1758680039678,7.75,214.43,214.36,7.7]
[1758680039878,1.32885663,214.42,214.36,7.7]
[1758680040275,7.75,214.37,214.33,4.1972]
[1758680040876,7.75,214.37,214.33,11.8972]
[1758680041375,7.75,214.37,214.33,7.7]
[1758680041573,7.75,214.39,214.31,4.1976]
[1758680041769,7.75,214.39,214.3,1.32885663]
[1758680041970,7.75,214.34,214.27,8.11609961]
[1758680042176,7.75,214.34,214.25,7.7]
[1758680042177,7.75,214.34,214.25,11.61779961]
[1758680042581,11.9472,214.34,214.25,15.81649961]
[1758680042881,1.26326086,214.33,214.25,11.8987]
[1758680043084,7.75,214.34,214.25,11.8987]
[1758680043282,7.75,214.31,214.24,3.91779961]
[1758680044284,13.27695663,214.29,214.22,3.91779961]
[1758680045181,13.27695663,214.29,214.21,15.81739961]
[1758680046073,7.75,214.29,214.21,11.61779961]
[1758680047378,7.75,214.29,214.25,4.1987]
[1758680047582,7.75,214.33,214.22,76.94259961]
[1758680047880,2.59171216,214.32,214.23,11.8992]
[1758680048080,1.32885663,214.32,214.23,11.8992]
[1758680048482,5.52655663,214.32,214.23,11.8992]
[1758680048684,1.26263695,214.31,214.23,11.8992]
[1758680048983,1.32885663,214.32,214.23,11.8992]
[1758680049384,1.26248586,214.31,214.23,11.8992]
[1758680049582,1.32885663,214.3,214.23,11.8992]
[1758680050584,7.75,214.29,214.23,4.1992]
[1758680051783,7.75,214.29,214.23,11.8992]
[1758680051984,118.31625663,214.33,214.22,9.02885663]
[1758680052279,128.93625663,214.33,214.22,12.94665624]
[1758680052784,11.9474,214.33,214.26,4.1985]
[1758680052987,1.32885663,214.32,214.26,4.1985]
[1758680053178,1.32885663,214.32,214.22,11.61779961]
[1758680054880,1.32885663,214.32,214.24,4.199]
[1758680055584,1.32885663,214.32,214.25,7.51]
[1758680056180,1.32885663,214.32,214.26,4.1986]
[1758680056577,11.9475,214.33,214.25,7.51]
[1758680056782,1.32885663,214.31,214.25,7.51]
[1758680057187,1.32885663,214.31,214.25,11.7088]
[1758680057591,1.32885663,214.31,214.25,7.51]
[1758680058889,1.32885663,214.31,214.26,4.1986]
[1758680059079,8.77885663,214.31,214.26,11.7086]
[1758680059382,7.45,214.3,214.26,7.51]
[1758680059781,7.45,214.3,214.2,70.38868004]
[1758680059782,4.198,214.3,214.22,8.11719961]
[1758680059982,4.198,214.3,214.22,15.62719961]
[1758680061690,4.1983,214.29,214.22,15.62719961]
[1758680062290,4.1983,214.29,214.22,8.11719961]
[1758680062484,4.1983,214.29,214.23,7.51]
[1758680064789,7.51,214.27,214.22,3.91779961]
[1758680065090,8.83885663,214.28,214.22,3.91779961]
[1758680065493,11.7087,214.27,214.23,7.28]
[1758680065793,7.51,214.26,214.23,7.28]
[1758680067292,4.1987,214.27,214.23,7.28]
[1758680067694,4.1981,214.3,214.23,7.28]
[1758680067994,51.44,214.3,214.23,7.28]
[1758680068184,7.51,214.27,214.23,7.28]
[1758680068586,7.51,214.27,214.21,3.91779961]
[1758680068790,7.51,214.27,214.2,3.91779961]
[1758680069596,7.51,214.27,214.21,7.28]
[1758680070795,7.51,214.27,214.22,4.1994]
[1758680071593,7.51,214.27,214.23,7.28]
[1758680073685,7.51,214.27,214.2,15.39769961]
[1758680074493,7.51,214.27,214.2,11.19779961]
[1758680075393,1.32885663,214.26,214.2,7.28]
[1758680075894,5.52775663,214.26,214.2,7.28]
[1758680076292,1.32885663,214.26,214.2,7.28]
[1758680076591,7.51,214.27,214.18,11.19779961]
[1758680076797,1.26502071,214.26,214.18,11.19779961]
[1758680076998,1.32885663,214.24,214.18,11.19779961]
[1758680077196,1.32885663,214.24,214.18,7.28]
[1758680077496,5.52805663,214.24,214.18,15.39799961]
[1758680077700,5.52805663,214.24,214.18,11.4802]
[1758680078792,1.32885663,214.24,214.18,11.4802]
[1758680079204,4.1988,214.26,214.15,7.28]
[1758680079205,1.32885663,214.19,214.15,7.28]
[1758680079395,7.51,214.23,214.13,3.91779961]
[1758680079601,8.83885663,214.23,214.15,11.19779961]
[1758680080101,8.83885663,214.23,214.17,4.2003]
[1758680080102,13.03815663,214.23,214.17,4.2003]
[1758680081203,11.7093,214.23,214.17,4.2003]
[1758680081402,8.83885663,214.23,214.18,7.28]
[1758680081601,8.83885663,214.23,214.17,11.4803]
[1758680083197,8.83885663,214.23,214.17,7.28]
[1758680084200,1.26412729,214.22,214.17,7.28]
[1758680084399,7.51,214.22,214.17,7.28]
[1758680084800,11.7096,214.22,214.15,4.2008]
[1758680085106,1.32885663,214.2,214.14,7.28]
[1758680086804,4.2002,214.19,214.14,7.28]
[1758680086999,7.51,214.18,214.14,7.28]
[1758680087207,7.51,214.19,214.12,7.28]
[1758680087605,8.83885663,214.19,214.12,7.28]
[1758680088602,7.51,214.19,214.12,7.28]
[1758680088908,4.2004,214.18,214.12,7.28]
[1758680089611,7.51,214.16,214.12,7.28]
[1758680090205,7.51,214.16,214.11,4.2015]
[1758680090604,7.51,214.16,214.12,7.28]
[1758680091008,4.2005,214.17,214.09,3.91779961]
[1758680091308,7.51,214.16,214.09,7.28]
[1758680093010,7.51,214.16,214.09,11.4819]
[1758680093402,11.7108,214.16,214.08,7.69]
[1758680094913,11.7108,214.16,214.08,11.8921]
[1758680095505,13.89899551,214.19,214.1,7.69]
[1758680095709,7.78,214.21,214.1,7.69]
[1758680095910,7.78,214.21,214.11,2.07961191]
[1758680096110,7.78,214.21,214.12,7.69]
[1758680096311,4.199,214.25,214.16,4.2006]
[1758680096506,13.76709423,214.23,214.17,7.69]
[1758680096711,87.48,214.26,214.17,7.69]
[1758680096914,37.59641909,214.36,214.19,7.69]
[1758680097114,126.84225228,214.35,214.19,7.69]
[1758680097410,7.78,214.33,214.19,7.69]
[1758680097610,7.78,214.31,214.19,7.69]
[1758680097812,1.26264037,214.3,214.23,4.1992]
[1758680098011,11.9778,214.31,214.23,4.1992]
[1758680098207,1.26246328,214.3,214.22,7.69]
[1758680098413,7.78,214.29,214.22,7.69]
[1758680098614,1.26202331,214.28,214.22,7.69]
[1758680098914,7.78,214.29,214.22,7.69]
[1758680100516,7.78,214.29,214.15,65.3469]
[1758680100714,9.05007574,214.28,214.16,7.69]
[1758680101016,7.78,214.31,214.22,7.69]
[1758680101220,7.78,214.36,214.22,7.69]
[1758680101418,1.27060295,214.35,214.22,7.69]
[1758680101720,1.27060295,214.34,214.27,7.69]
[1758680101909,7.78,214.36,214.27,7.69]
[1758680102216,1.27092646,214.35,214.27,7.69]
[1758680102424,1.27092646,214.34,214.27,7.69]
[1758680102627,7.78,214.36,214.28,4.1982]
[1758680102921,1.2707095,214.35,214.28,4.1982]
[1758680103127,1.2707095,214.34,214.28,4.1982]
[1758680103328,7.78,214.36,214.27,7.69]
[1758680103521,1.27068564,214.35,214.27,7.69]
[1758680103716,1.27068564,214.34,214.27,7.69]
[1758680103919,7.78,214.36,214.27,11.8883]
[1758680104119,1.27063678,214.35,214.27,7.69]
[1758680104319,115.7,214.37,214.27,7.69]
[1758680104520,1.27065593,214.36,214.27,7.69]
[1758680104725,115.7,214.37,214.31,7.69]
[1758680105120,360.84,214.39,214.31,7.69]
[1758680105430,7.78,214.37,214.25,7.69]
[1758680105725,369.06845672,214.39,214.25,7.69]
[1758680105726,7.78,214.35,214.27,4.1985]
[1758680105921,7.78,214.35,214.28,7.69]
[1758680106122,490.52884481,214.39,214.28,7.69]
[1758680106322,1.27066694,214.38,214.31,7.69]
[1758680106522,360.84,214.39,214.2,5.05898004]
[1758680106726,7.78,214.37,214.23,73.0127]
[1758680106931,1.27032609,214.36,214.27,11.8885]
[1758680107125,7.78,214.37,214.27,7.69]
[1758680107428,353.06,214.39,214.32,7.69]
[1758680107625,1.27022133,214.38,214.32,7.69]
[1758680107925,7.78,214.41,214.32,7.69]
[1758680108126,1.27066602,214.4,214.32,7.69]
[1758680108429,7.78,214.38,214.26,7.69]
[1758680108623,7.78,214.38,214.28,2.07961191]
[1758680108924,33.92,214.4,214.32,7.69]
[1758680110427,33.92,214.4,214.34,7.69]
[1758680110728,7.78,214.42,214.34,7.69]
[1758680111224,1.27038301,214.41,214.34,7.69]
[1758680111526,7.78,214.42,214.34,7.69]
[1758680111724,1.27036296,214.41,214.34,7.69]
[1758680111927,7.78,214.42,214.34,7.69]
[1758680112231,1.27028844,214.41,214.34,7.69]
[1758680112423,7.78,214.42,214.34,7.69]
[1758680113924,7.78,214.42,214.35,4.1968]
[1758680114328,7.78,214.42,214.36,7.64]
[1758680115632,112.3,214.46,214.36,7.64]
[1758680115838,7.68,214.5,214.37,65.2803]
[1758680116133,1.26982183,214.49,214.39,7.64]
[1758680116334,1.26982183,214.48,214.39,7.64]
[1758680116631,7.68,214.5,214.39,7.64]
[1758680116838,1.26916885,214.49,214.39,7.64]
[1758680117027,1.26916885,214.48,214.39,7.64]
[1758680117231,7.68,214.5,214.39,7.64]
[1758680117422,7.68,214.47,214.3,33.96]
[1758680117627,7.68,214.47,214.25,73.7132]
[1758680117628,7.68,214.45,214.32,7.64]
[1758680117927,1.26846361,214.44,214.32,7.64]
[1758680118122,4.1958,214.41,214.32,11.8374]
[1758680118333,7.68,214.4,214.32,7.64]
[1758680119129,11.8761,214.4,214.32,7.64]
[1758680119521,11.8761,214.4,214.32,11.8374]
[1758680119522,7.68,214.4,214.32,11.8374]
[1758680120133,11.8752,214.44,214.34,7.64]
[1758680120328,1.26719536,214.43,214.34,7.64]
[1758680120634,11.8752,214.44,214.34,7.64]
[1758680120928,7.68,214.48,214.36,7.64]
[1758680121425,7.68,214.48,214.41,4.1956]
[1758680122133,352.92,214.52,214.45,4.1948]
[1758680122337,1.26723437,214.51,214.45,4.1948]
[1758680122533,7.68,214.53,214.44,7.64]
[1758680122836,123.6,214.56,214.46,11.8347]
[1758680123038,1.26743862,214.55,214.46,11.8347]
[1758680123232,123.6,214.56,214.46,11.8347]
[1758680123632,7.68,214.56,214.46,7.64]
[1758680124835,11.8728,214.56,214.48,4.1942]
[1758680125134,7.68,214.56,214.46,7.64]
[1758680125328,7.68,214.56,214.47,4.1944]
[1758680126140,7.68,214.56,214.48,4.1942]
[1758680126435,7.68,214.56,214.46,2.07961191]
[1758680126642,50.68,214.6,214.5,7.7]
[1758680126834,7.61,214.61,214.53,2.07961191]
[1758680127139,7.61,214.61,214.53,9.77961191]
[1758680127341,7.61,214.61,214.53,7.7]
[1758680127637,7.61,214.61,214.49,2.07961191]
[1758680127841,7.61,214.61,214.5,7.7]
[1758680128240,11.8019,214.61,214.5,11.8939]
[1758680128539,11.8019,214.61,214.5,13.97351191]
[1758680128740,7.61,214.58,214.44,2.07961191]
[1758680129044,7.61,214.58,214.45,7.7]
[1758680129343,4.1931,214.55,214.45,11.8948]
[1758680129537,7.61,214.58,214.45,7.7]
[1758680130141,7.61,214.58,214.47,4.1946]
[1758680130847,7.61,214.58,214.49,4.1942]
[1758680131738,1.27257074,214.57,214.44,7.7]
[1758680131942,7.61,214.55,214.44,7.7]
[1758680133847,7.61,214.52,214.44,7.7]
[1758680134638,4.194,214.5,214.35,70.61334013]
[1758680134848,4.194,214.5,214.4,7.7]
[1758680135347,7.61,214.49,214.4,7.7]
[1758680136649,7.61,214.49,214.41,4.1958]
[1758680137547,11.8043,214.49,214.41,4.1958]
[1758680137949,92.02,214.53,214.33,7.7]
[1758680137950,7.61,214.47,214.33,7.7]
[1758680138146,7.61,214.45,214.33,7.7]
[1758680138342,1.27448434,214.44,214.35,4.1968]
[1758680138942,5.46988434,214.44,214.35,4.1968]
[1758680139140,1.27448434,214.43,214.35,4.1968]
[1758680139343,1.27448434,214.43,214.33,7.7]
[1758680139539,1.27448434,214.42,214.33,7.7]
[1758680139749,7.61,214.45,214.33,7.7]
[1758680139947,1.27623946,214.44,214.33,7.7]
[1758680140152,1.27623946,214.43,214.33,7.7]
[1758680140349,1.27623946,214.42,214.33,7.7]
[1758680140549,7.61,214.45,214.33,7.7]
[1758680140751,1.27776811,214.44,214.33,7.7]
[1758680141048,1.27776811,214.43,214.33,7.7]
[1758680141249,7.61,214.45,214.33,7.7]
[1758680141847,7.61,214.45,214.37,11.8964]
[1758680142649,11.8051,214.45,214.37,7.7]
[1758680143055,1.21867038,214.44,214.37,7.7]
[1758680143349,11.8051,214.45,214.37,7.7]
[1758680143552,1.21928683,214.44,214.37,7.7]
[1758680143744,11.8051,214.45,214.37,7.7]
[1758680143952,1.21918533,214.44,214.37,7.7]
[1758680144143,11.8051,214.45,214.37,7.7]
[1758680144347,1.21981912,214.44,214.37,7.7]
[1758680144553,11.8051,214.45,214.37,7.7]
[1758680144756,4.1956,214.42,214.33,4.1973]
[1758680145151,7.61,214.41,214.31,7.7]
[1758680145358,1.21976841,214.4,214.31,7.7]
[1758680145554,7.61,214.38,214.31,4.1977]
[1758680145759,7.61,214.38,214.27,7.7]
[1758680145955,7.61,214.46,214.32,65.2945]
[1758680146154,7.61,214.46,214.3,65.3009]
[1758680146155,1.21990549,214.45,214.35,7.7]
[1758680146460,1.22072993,214.44,214.35,7.7]
[1758680146652,7.61,214.46,214.35,7.7]
[1758680146857,1.22085099,214.45,214.35,7.7]
[1758680147058,1.22085099,214.44,214.35,7.7]
[1758680147255,7.61,214.46,214.35,7.7]
[1758680147552,1.22124793,214.45,214.37,65.2801]
[1758680147859,77.02,214.51,214.38,7.7]
[1758680147860,7.61,214.5,214.38,7.7]
[1758680148052,1.2214346,214.49,214.38,7.7]
[1758680148251,1.2214346,214.48,214.38,7.7]
[1758680148456,1.2214346,214.47,214.38,7.7]
[1758680148653,1.2214346,214.46,214.38,7.7]
[1758680148851,7.61,214.5,214.41,4.1956]
[1758680149157,1.22188312,214.49,214.41,4.1956]
[1758680149357,1.22188312,214.48,214.41,4.1956]
[1758680149559,1.22188312,214.47,214.41,4.1956]
[1758680149751,1.22188312,214.46,214.41,4.1956]
[1758680149952,7.61,214.46,214.41,4.1956]
[1758680150157,1.22206378,214.45,214.38,11.8962]
[1758680150357,7.61,214.46,214.38,7.7]
[1758680150659,1.22272825,214.45,214.38,7.7]
[1758680150853,7.61,214.46,214.38,7.7]
[1758680151048,1.22272901,214.45,214.38,7.7]
[1758680151253,7.61,214.46,214.38,7.7]
[1758680151448,1.22297772,214.45,214.38,65.2771]
[1758680151653,7.61,214.51,214.41,7.7]
[1758680151856,1.22334969,214.5,214.41,7.7]
[1758680152057,1.22334969,214.49,214.41,7.7]
[1758680152257,7.61,214.51,214.41,7.7]
[1758680152652,405.68,214.56,214.43,65.2622]
[1758680152653,7.61,214.55,214.43,65.2622]
[1758680152963,7.61,214.55,214.44,7.7]
[1758680153256,7.61,214.55,214.34,73.6827]
[1758680153456,7.43,214.53,214.37,7.21]
[1758680153657,65.2351,214.52,214.37,7.21]
[1758680153858,7.43,214.51,214.37,7.21]
[1758680154056,7.43,214.46,214.37,7.21]
[1758680154268,7.43,214.46,214.31,65.2984]
[1758680154269,7.43,214.47,214.32,7.21]
[1758680154761,4.1955,214.43,214.34,4.1971]
[1758680154955,7.43,214.42,214.34,4.1971]
[1758680155551,11.6258,214.42,214.34,4.1971]
[1758680156365,4.1959,214.41,214.32,11.4075]
[1758680156764,4.1962,214.39,214.32,11.4075]
[1758680156971,11.6262,214.39,214.32,11.4075]
[1758680157256,7.43,214.39,214.32,11.4075]
[1758680157856,7.43,214.39,214.3,4.1979]
[1758680158058,7.43,214.39,214.28,7.21]
[1758680158963,7.43,214.35,214.22,7.21]
[1758680159269,7.43,214.33,214.22,7.21]
[1758680159567,4.1979,214.31,214.22,11.4093]
[1758680159867,7.43,214.3,214.22,11.4093]
[1758680160959,7.43,214.3,214.19,4.1999]
[1758680161164,7.43,214.3,214.18,7.21]
[1758680161165,116.32,214.29,214.18,7.21]
[1758680161365,7.43,214.28,214.18,7.21]
[1758680162871,7.43,214.28,214.18,11.4101]
[1758680163871,7.43,214.28,214.2,7.21]
[1758680164065,123.75,214.32,214.2,7.21]
[1758680165166,123.75,214.32,214.23,4.1992]
[1758680165666,123.75,214.32,214.2,7.21]
[1758680165867,7.43,214.29,214.15,65.3456]
[1758680166083,7.43,214.25,214.11,7.21]
[1758680166375,7.43,214.19,214.1,4.2016]
[1758680167478,7.43,214.17,214.07,11.4122]
[1758680167671,7.43,214.17,214.07,7.21]
[1758680168071,7.43,214.17,214.07,72.5806]
[1758680168575,0.81303662,214.16,214.07,72.5806]
[1758680168775,0.81303662,214.16,214.07,7.21]
[1758680168970,7.43,214.15,214.07,7.21]
[1758680169370,7.43,214.15,214.03,72.5905]
[1758680169569,7.43,214.15,214.04,65.3791]
[1758680170779,7.43,214.15,214.08,4.2021]
[1758680171670,65.3477,214.15,213.98,72.6077]
[1758680171875,132.84886564,214.16,213.98,72.6082]
[1758680172069,4.00346564,214.16,213.98,72.6082]
[1758680172270,40.05,214.15,214.03,4.2031]
[1758680172469,7.43,214.13,214.03,4.2031]
[1758680172777,7.43,214.11,214.02,7.21]
[1758680173075,7.43,214.1,213.95,7.21]
[1758680173279,45.8,214.09,213.97,4.2043]
[1758680173476,7.11,214.08,213.97,4.2043]
[1758680173772,7.11,214.08,213.95,7.21]
[1758680174077,7.11,214.05,213.95,7.21]
[1758680175272,4.203,214.04,213.95,7.21]
[1758680175674,4.2034,214.02,213.91,4.2054]
[1758680175874,85.07,214.03,213.91,7.59]
[1758680176177,20.84652875,214.03,213.91,7.59]
[1758680176378,117.22,214.02,213.93,4.2051]
[1758680176877,7.11,214.01,213.93,4.2051]
[1758680177075,7.11,214.01,213.91,7.59]
[1758680177076,11.3136,214.01,213.91,7.59]
[1758680177277,117.2,214.0,213.91,7.59]
[1758680178181,117.18,213.99,213.91,7.59]
[1758680178682,117.16,213.99,213.91,7.59]
[1758680179071,7.11,213.98,213.87,11.7962]
[1758680180184,7.11,213.98,213.89,4.206]
[1758680181270,56.26,213.97,213.87,7.59]
[1758680181478,7.11,213.96,213.87,7.59]
[1758680181779,96.69,213.96,213.87,7.59]
[1758680182169,117.08,213.95,213.87,7.59]
[1758680182776,7.11,213.93,213.79,7.59]
[1758680183177,33.98,213.92,213.79,7.59]
[1758680183674,7.11,213.93,213.83,4.207]
[1758680183877,29.84,213.92,213.83,4.207]
[1758680184072,7.11,213.93,213.83,4.207]
[1758680184278,55.72,213.92,213.83,4.207]
[1758680184979,7.11,213.93,213.85,4.2067]
[1758680185284,31.9,213.92,213.85,4.2067]
[1758680185485,61.56,213.92,213.85,4.2067]
[1758680185685,7.11,213.93,213.87,4.2063]
[1758680185882,7.78,213.99,213.86,65.4346]
[1758680186189,31.58,213.97,213.87,7.11]
[1758680186380,7.78,213.96,213.87,7.11]
[1758680186680,7.78,213.96,213.83,7.11]
[1758680187286,4.205,213.95,213.85,4.2066]
[1758680187479,4.205,213.95,213.83,7.11]
[1758680188086,7.78,213.96,213.87,7.11]
[1758680188280,7.78,214.02,213.92,65.4174]
[1758680188480,7.78,214.02,213.93,65.4143]
[1758680188784,7.78,214.06,213.99,4.2039]
[1758680188981,125.26,214.06,213.99,4.2039]
[1758680189188,125.26,214.06,213.94,7.11]
[1758680189378,125.26,214.06,213.95,4.2046]
[1758680189582,125.26,214.06,213.94,7.11]
[1758680190084,117.5,214.05,213.94,7.11]
[1758680190480,121.703,214.05,213.94,7.11]
[1758680190680,7.78,214.04,213.89,7.11]
[1758680190879,182.8784,214.05,213.89,7.11]
[1758680190880,7.78,214.01,213.89,7.11]
[1758680191081,4.2044,213.98,213.9,4.2057]
[1758680191276,7.78,213.98,213.89,7.11]
[1758680191481,7.78,214.02,213.89,7.11]
[1758680191784,45.26,214.01,213.89,7.11]
[1758680191980,4.2038,214.0,213.92,4.2052]
[1758680192290,4.2038,214.0,213.83,68.63492902]
[1758680192291,7.78,214.0,213.86,7.11]
[1758680192585,82.02,213.99,213.92,4.2052]
[1758680192781,82.02,213.99,213.89,7.11]
[1758680193082,125.48,214.0,213.89,7.11]
[1758680193681,4.2042,213.98,213.91,4.2054]
[1758680195490,7.78,213.97,213.84,7.11]
[1758680196182,35.9447,213.96,213.87,4.2062]
[1758680196790,31.74,213.96,213.85,65.4382]
[1758680197089,68.14,213.96,213.85,65.4382]
[1758680197291,7.78,213.97,213.85,65.4382]
[1758680197486,7.78,213.97,213.84,7.11]
[1758680197487,7.78,214.02,213.91,7.11]
[1758680198386,7.78,214.01,213.85,72.5486]
[1758680198587,132.41532902,214.03,213.85,72.5486]
[1758680198796,7.78,214.0,213.91,7.11]
[1758680199492,11.9847,213.96,213.86,4.2064]
[1758680199791,117.84,213.97,213.87,7.11]
[1758680200891,117.84,213.97,213.9,4.2056]
[1758680201793,117.84,213.97,213.87,7.11]
[1758680201794,117.84,213.97,213.91,4.2054]
[1758680202589,7.78,213.98,213.91,4.2054]
[1758680202792,87.56,213.98,213.93,11.3151]
[1758680203393,7.78,213.98,213.93,11.3151]
[1758680203587,7.78,213.98,213.94,4.2048]
[1758680204194,117.72,214.0,213.94,4.2048]
[1758680204787,7.78,213.99,213.91,7.11]
[1758680204997,4.2043,213.98,213.86,7.11]
[1758680205194,7.78,213.99,213.86,7.11]
[1758680205496,117.72,213.98,213.89,7.11]
[1758680205887,7.78,213.99,213.89,7.11]
[1758680205888,7.78,213.99,213.94,4.2048]
[1758680206086,76.92,213.99,213.94,11.3148]
[1758680206287,7.78,213.98,213.9,7.11]
[1758680206796,7.78,213.98,213.91,4.2054]
[1758680207200,11.9843,213.98,213.9,7.11]
[1758680207496,7.78,213.98,213.9,7.11]
[1758680208090,7.78,214.03,213.95,7.11]
[1758680208401,3.19042902,214.1,213.95,7.11]
[1758680208402,55.38,214.06,213.95,7.11]
[1758680208598,63.16,214.06,213.95,7.11]
[1758680209503,63.16,214.06,213.96,4.2044]
[1758680209701,63.16,214.06,213.95,7.11]
[1758680211008,19.50853973,214.1,213.95,7.11]
[1758680211206,125.5,214.09,213.95,7.11]
[1758680211999,11.9821,214.09,214.01,4.2035]
[1758680212205,117.72,214.08,214.01,4.2035]
[1758680212606,4.2025,214.07,213.99,4.2039]
[1758680213001,117.72,214.08,213.97,65.4022]
[1758680214002,117.72,214.08,214.01,4.2035]
[1758680214802,121.9224,214.08,214.01,4.2035]
[1758680215304,121.9224,214.08,214.03,4.2032]
[1758680215305,117.64,214.08,214.03,4.2032]
[1758680215504,7.08,214.07,214.03,4.2032]
[1758680215711,7.08,214.07,213.94,7.36]
[1758680215712,72.4522,214.07,213.94,7.36]
[1758680215906,72.4522,214.07,213.86,78.49416875]
[1758680215907,7.08,214.0,213.87,3.91288001]
[1758680216209,7.08,213.98,213.86,7.36]
[1758680217411,7.08,213.98,213.87,65.4317]
[1758680217606,124.92,213.98,213.88,7.36]
[1758680218613,1.21345194,213.97,213.92,4.2052]
[1758680218810,7.08,213.97,213.88,7.36]
[1758680219409,1.21326105,213.96,213.88,7.36]
[1758680219608,7.08,213.97,213.88,7.36]
[1758680219909,1.21325718,213.96,213.88,7.36]
[1758680220109,4.2048,213.95,213.88,11.5661]
[1758680220612,1.22271778,213.94,213.84,11.27288001]
[1758680220812,7.08,213.92,213.84,7.36]
[1758680221212,7.08,213.92,213.85,4.2066]
[1758680221414,7.08,213.92,213.84,7.36]